[Event "44th Chess Olympiad Open 2022"]
[Site "Chennai"]
[Date "2022.08.06"]
[Round "8.21"]
[White "Rodshtein, Maxim"]
[Black "Sanchez, Sebastian Felipe"]
[Result "1-0"]
[WhiteElo "2596"]
[BlackElo "2440"]
[Annotator "TA"]
[PlyCount "169"]
[EventDate "2022.??.??"]
[TimeControl "60"]

{[%evp 23,169,11,12,12,14,7,10,3,5,4,8,5,14,9,9,0,0,6,15,0,20,14,20,0,63,51,41,
49,48,40,41,43,54,59,64,54,162,161,189,27,23,33,33,37,41,6,12,0,16,19,32,20,49,
49,54,34,38,22,29,22,23,23,29,22,22,22,23,23,23,23,34,28,89,89,101,89,136,139,
318,320,315,313,274,267,250,0,239,224,433,413,12179,11475,12831,12831,12833,
12833,12834,12834,12837,12833,12837,12837,12840,12839,12847,12847,12850,27999,
27999,27999,27999,27999,27999,27999,27999,27999,27999,27999,27999,27999,27999,
27999,27999,27999,27999,27999,27999,27999,27999,27999,27999,27999,27999,27999,
27999,27999,27999,27999,27999,27999,27999,27999,27999,27999,27999,27999,27999,
27999]} 1. Nf3 {[%emt 0:00:09] ChessBase II} Nf6 {[%emt 0:00:24]} 2. c4 {
[%emt 0:00:23]} e6 {[%emt 0:00:17]} 3. g3 {[%emt 0:00:26]} d5 {[%emt 0:00:41]}
4. Bg2 {[%emt 0:00:34]} Be7 {[%emt 0:00:44]} 5. O-O {[%emt 0:01:14]} O-O {
[%emt 0:00:07]} 6. d4 {[%emt 0:01:00]} dxc4 {[%emt 0:01:18]} 7. Qc2 {[%emt 0:
00:00]} a6 {[%emt 0:00:10]} 8. a4 {[%emt 0:00:35]} Bd7 {[%emt 0:00:49][%cal
Yc8d7,Yd7c6,Yc6d5]} 9. Qxc4 {[%emt 0:01:06]} Bc6 {[%emt 0:00:07]} 10. Bg5 {
[%emt 0:01:09]} Bd5 {[%emt 0:01:45]} 11. Qc2 {[%emt 0:03:05]} Be4 {[%emt 0:01:
17]} 12. Qc1 {[%emt 0:00:10]} h6 {[%emt 0:00:59]} 13. Bxf6 {[%emt 0:00:00] E05:
Open Catalan: 5 Nf3 Be7.} Bxf6 {[%emt 0:00:05]} 14. Nbd2 {[%emt 0:00:00]} Bxf3
{[%emt 0:01:06]} 15. Nxf3 {[%emt 0:00:07] The position is equal.} a5 {[%emt 0:
00:58]} 16. Qc3 {[%emt 0:01:17]} Nc6 {[%emt 0:04:07][%cal Rc6d4]} 17. Rad1 {
[%emt 0:00:49]} Nb4 {[%emt 0:02:35]} 18. Ne5 {[%emt 0:00:22]} c6 {[%emt 0:01:
01]} 19. Ng4 {[%emt 0:01:49] [#]} h5 $146 {[%emt 0:01:59]} ({Predecessor:} 
19... Rc8 20. e4 Be7 21. Kh1 h5 22. Ne3 g6 23. f4 Bf6 24. Qd2 Bg7 25. f5 exf5
26. exf5 {½-½ (65) Rodshtein,M (2678)-Kryvoruchko,Y (2705) Brest 2018 EXT
2019 [ChessBase II]}) 20. Nxf6+ {[%emt 0:02:14]} Qxf6 {[%emt 0:00:04]} 21. f4 {
[%emt 0:02:15]} Rfd8 {[%emt 0:01:23]} 22. e4 {[%emt 0:02:17]} g6 {[%emt 0:01:
35]} 23. h4 {[%emt 0:15:40]} Qe7 {[%emt 0:28:26]} ({Black should try} 23... Rd7
$11) 24. f5 $1 $14 {[%emt 0:18:55]} exf5 {[%emt 0:00:48]} 25. exf5 {[%emt 0:00:
08]} Nd5 {[%emt 0:00:11]} 26. Rde1 $1 {[%emt 0:00:30]} Qf6 {[%emt 0:04:09]} 27.
Qd2 {[%emt 0:12:58]} gxf5 {[%emt 0:02:52]} 28. Re5 {[%emt 0:03:13]} Ne7 {
[%emt 0:00:50] White must now prevent ...Qxe5.} 29. Qe3 {[%emt 0:06:31] White
is more active.} Kf8 {[%emt 0:14:50] [#]} (29... Re8 $1 $14) 30. Be4 $1 $18 {
[%emt 0:09:18][%cal Re4f5]} c5 {[%emt 0:00:15]} (30... Qd6 $2 31. Bxf5 Qxd4 32.
Rxe7 $18) 31. Rxc5 {[%emt 0:02:40]} ({Stronger than} 31. Bxb7 cxd4 32. Qe1 Rab8
33. Qxa5 d3 $17) (31. Bxf5 $18 {[%cal Yf5e6] Hoping for Be6!} cxd4 32. Qe4)
31... Qxd4 $11 {[%emt 0:02:18]} 32. Qxd4 {[%emt 0:00:08]} Rxd4 {[%emt 0:00:05]}
33. Bxf5 {[%emt 0:00:12] Be6 is the strong threat.} ({Reject} 33. Bxb7 Rb8 34.
Rc7 Rd3 $11) 33... b6 {[%emt 0:10:54]} 34. Rc7 {[%emt 0:01:22] And now Be6
would win.} Rad8 {[%emt 0:02:08]} 35. Bc2 {[%emt 0:00:00]} Rb4 {[%emt 0:02:38]}
36. b3 {[%emt 0:02:09]} Rg4 {[%emt 0:03:46]} 37. Rf3 {[%emt 0:01:41]} Rd2 {
[%emt 0:01:50][%cal Yf8g8]} 38. Bd3 {[%emt 0:00:40]} Rd4 {[%emt 0:06:38]} 39.
Bc4 {[%emt 0:00:22]} f5 {[%emt 0:00:05]} 40. Rb7 {[%emt 0:01:51]} Rb2 $1 {
[%emt 0:02:55]} 41. Rf2 {[%emt 0:06:51] Chess con chili.} Rxf2 {[%emt 0:05:36]}
42. Kxf2 {[%emt 0:00:07] Endgame KRB-KRN} f4 {[%emt 0:00:03]} 43. Rxb6 {
[%emt 0:03:47]} fxg3+ {[%emt 0:00:05]} 44. Kxg3 {[%emt 0:00:06] Threatens to
win with Rb5.} Nf5+ {[%emt 0:00:11]} 45. Kf2 {[%emt 0:04:23]} Nd6 $1 {[%emt 0:
03:32]} 46. Be2 {[%emt 0:03:54] Strongly threatening Ra6.} Ke7 {[%emt 0:00:06]}
47. Ra6 {[%emt 0:01:07]} Rd5 {[%emt 0:00:00]} (47... Rxh4 $11 {keeps the
balance.} 48. Rxa5 Rb4) 48. Ra7+ $16 {[%emt 0:08:55]} Kf6 {[%emt 0:00:05]} 49.
Rh7 {[%emt 0:01:23]} Kg6 {[%emt 0:00:00]} (49... Rd4 $142) 50. Rh8 {[%emt 0:00:
14]} Re5 {[%emt 0:01:40]} (50... Nf5 $16) 51. Bd3+ $18 {[%emt 0:00:37]} Kg7 {
[%emt 0:00:04]} 52. Rh7+ {[%emt 0:00:00]} Kf6 {[%emt 0:00:03]} 53. Rh6+ {
[%emt 0:00:28]} Ke7 {[%emt 0:00:03]} 54. Rh7+ {[%emt 0:02:49]} Kf6 $1 {[%emt 0:
00:04]} 55. Rc7 {[%emt 0:02:03]} Nf5 $2 {[%emt 0:03:49]} (55... Nf7 {is a
better defense.} 56. Ra7 Nd6) 56. Rc6+ {[%emt 0:01:01]} Ke7 {[%emt 0:00:04]} (
56... Re6 $142 57. Rxe6+ Kxe6 58. Bxf5+ Kxf5) 57. Bxf5 {[%emt 0:01:02]} Rxf5+ {
[%emt 0:00:03] KR-KR} 58. Ke3 {[%emt 0:00:00]} Kd7 {[%emt 0:00:50]} 59. Ke4 {
[%emt 0:01:09]} Rf1 {[%emt 0:00:24]} 60. Rc5 {[%emt 0:00:08][%csl Ya5,Yh5]} Rb1
{[%emt 0:01:07]} 61. Rb5 {[%emt 0:00:00]} Rh1 {[%emt 0:00:30]} 62. Rxh5 {
[%emt 0:00:21]} Rh3 {[%emt 0:00:04]} 63. Rb5 {[%emt 0:00:50]} Rxh4+ {[%emt 0:
00:03] [#]} 64. Kd3 $1 {[%emt 0:00:16]} Kc6 {[%emt 0:00:25]} 65. Rxa5 {[%emt 0:
00:11]} Rh3+ {[%emt 0:00:25] White mates.} 66. Kc4 {[%emt 0:00:09]} Rh4+ {
[%emt 0:00:04]} 67. Kc3 {[%emt 0:00:04]} Rh3+ {[%emt 0:01:09]} 68. Kb4 {
[%emt 0:00:11]} Rh4+ {[%emt 0:00:04]} 69. Ka3 {[%emt 0:00:05]} Kb6 {[%emt 0:00:
23]} 70. Rg5 {[%emt 0:00:10]} ({Weaker is} 70. b4 Rh3+ 71. Kb2 Rh2+ 72. Kb3
Rh3+ 73. Kc2 Rh2+ 74. Kd3 Rh3+ 75. Kd2 Rh2+ 76. Kd3 Rh3+ 77. Kd4 Rh4+ 78. Kc3
Rh3+ 79. Kd2 Rh2+ 80. Kd3 $16) 70... Ka6 {[%emt 0:01:05]} 71. Rg6+ {[%emt 0:00:
08]} Ka7 {[%emt 0:00:16]} 72. a5 {[%emt 0:00:00][%cal Ya4a5,Ya5a6]} Kb7 {
[%emt 0:00:42]} 73. b4 {[%emt 0:00:10][%cal Yb3b4,Yb4b5,Yb5b6]} Ka7 {[%emt 0:
00:21]} 74. Ka4 {[%emt 0:00:21]} Rh7 {[%emt 0:00:28]} 75. a6 {[%emt 0:00:36]}
Rh5 {[%emt 0:00:29]} 76. b5 {[%emt 0:00:14]} Rh1 {[%emt 0:00:09]} 77. Rg7+ {
[%emt 0:00:24]} Kb8 {[%emt 0:00:00]} 78. Ka5 {[%emt 0:00:42]} Rh8 {[%emt 0:00:
13]} 79. Rg5 {[%emt 0:00:28]} Rf8 {[%emt 0:00:25]} 80. b6 {[%emt 0:00:19]} Ka8
{[%emt 0:00:24]} 81. Rc5 {[%emt 0:00:00]} Rb8 {[%emt 0:02:08]} 82. Kb5 {
[%emt 0:01:34]} Rh8 {[%emt 0:00:20]} 83. a7 {[%emt 0:00:21]} Kb7 {[%emt 0:00:
41]} 84. Rc7+ {[%emt 0:00:13]} Ka8 {[%emt 0:00:02]} 85. Ka6 {[%emt 0:00:22]
Weighted Error Value: White=0.18 (very precise) /Black=0.18 (very precise)} 1-0

[Event "44th Chess Olympiad Open 2022"]
[Site "Chennai"]
[Date "2022.08.06"]
[Round "8.21"]
[White "Boruchovsky, Avital"]
[Black "Cardoso Cardoso, Jose Gabriel"]
[Result "1/2-1/2"]
[WhiteElo "2551"]
[BlackElo "2493"]
[Annotator "TA"]
[PlyCount "91"]
[EventDate "2022.??.??"]
[TimeControl "60"]

{[%evp 9,91,2,8,0,15,21,16,-1,35,13,18,16,34,15,42,22,20,17,29,18,17,8,36,15,
45,46,56,57,93,87,68,25,109,98,94,86,93,18,21,16,14,14,16,15,20,15,14,0,0,0,16,
12,16,15,106,102,141,89,223,109,81,10,9,9,14,14,14,14,14,14,14,0,0,0,47,0,0,0,
0,0,0,0,0,0]} 1. e4 {[%emt 0:00:13]} c5 {[%emt 0:00:14]} 2. Nf3 {[%emt 0:00:06]
} d6 {[%emt 0:00:08]} 3. d4 {[%emt 0:00:10]} cxd4 {[%emt 0:00:11]} 4. Nxd4 {
[%emt 0:00:04]} Nf6 {[%emt 0:00:10]} 5. Bb5+ {[%emt 0:00:09]} Bd7 {[%emt 0:00:
00]} 6. c4 {[%emt 0:00:05] B55: Sicilian: 2...d6 3 d4 cxd4 4 Nxd4 Nf6 5 f3.}
Nc6 {[%emt 0:03:48]} (6... e5 {seems wilder.} 7. Nf5 Nxe4 8. Qd5 Bxb5 9. cxb5
Nc5) 7. Nc3 {[%emt 0:00:07]} g6 {[%emt 0:00:01]} 8. h3 {[%emt 0:00:07]} Bg7 {
[%emt 0:00:36][%cal Yf6e4]} 9. Be3 {[%emt 0:00:15]} O-O {[%emt 0:02:24]} 10.
O-O {[%emt 0:04:34]} Rc8 {[%emt 0:08:22] is the new trend.} 11. Bxc6 {[%emt 0:
00:00]} Bxc6 {[%emt 0:01:10]} 12. Nxc6 {[%emt 0:02:23]} Rxc6 {[%emt 0:01:44]}
13. b3 {[%emt 0:07:09]} a6 {[%emt 0:11:49][%cal Yb7b5]} 14. Rc1 {[%emt 0:04:55]
} e6 {[%emt 0:01:58] [#]} 15. Bd4 $146 {[%emt 0:04:37]} ({Predecessor:} 15. Qd3
Qa5 16. Rfd1 Nd7 17. Bd4 Nc5 18. Qe3 Rfc8 19. Bxg7 Kxg7 20. e5 dxe5 21. Qxe5+ {
1-0 (38) Stachon,M (2113)-Skacelik,P (2185) Czech Republic 2013}) 15... Qe7 {
[%emt 0:02:10]} 16. Re1 {[%emt 0:03:11]} Rcc8 {[%emt 0:08:17]} 17. Qd3 {
[%emt 0:04:11]} Rfd8 {[%emt 0:00:36]} 18. Rcd1 {[%emt 0:01:25]} Ne8 {[%emt 0:
00:00]} 19. Bb6 {[%emt 0:04:19] White is more active.} Rd7 {[%emt 0:01:34]} 20.
a4 {[%emt 0:01:28][%cal Ya2a4,Ya4a5]} Nf6 {[%emt 0:02:34]} (20... d5 $11 {
keeps the balance.} 21. a5 (21. exd5 Qb4 $14) 21... Bxc3 22. Qxc3 dxc4) 21. Qd2
{[%emt 0:12:21]} Qf8 {[%emt 0:02:51]} 22. a5 {[%emt 0:01:40]} d5 {[%emt 0:05:
11]} 23. cxd5 {[%emt 0:09:36]} (23. exd5 $16 exd5 24. cxd5 (24. Nxd5 Nxd5 25.
cxd5 Bc3 $17)) 23... Nxd5 $11 {[%emt 0:04:19]} 24. Nxd5 {[%emt 0:00:00]} exd5 {
[%emt 0:00:04]} 25. e5 {[%emt 0:01:00]} ({Reject} 25. exd5 Bc3 26. Qe3 Bxe1 27.
Qxe1 Qe8 $17) 25... Qa3 {[%emt 0:02:17]} 26. Qe3 {[%emt 0:04:57] Threatens to
win with e6.} Rc6 {[%emt 0:01:54]} 27. Rd3 {[%emt 0:08:11]} Bf8 {[%emt 0:06:45]
} 28. Qf4 {[%emt 0:13:55]} Qb4 {[%emt 0:03:35]} 29. Re4 {[%emt 0:00:00]} Qb5 {
[%emt 0:05:13]} 30. Red4 {[%emt 0:01:44]} Bg7 {[%emt 0:00:51]} 31. Qg3 {
[%emt 0:01:47]} Bf8 {[%emt 0:04:58]} (31... Rc1+ $11 32. Kh2 Qc6) 32. Kh2 $16 {
[%emt 0:00:46]} Rc2 {[%emt 0:05:18]} 33. f4 {[%emt 0:00:55]} (33. Qf3 $142)
33... Re2 {[%emt 0:00:35] [#]} (33... Qc6 $16) 34. Qf3 {[%emt 0:01:11]} (34.
Rc3 $1 $18 {is the precise move to win.}) 34... Re4 {[%emt 0:00:06] [#]} 35.
Qd1 {[%emt 0:00:22]} (35. Rc3 $1 $16) 35... Rxd4 $11 {[%emt 0:00:24]} 36. Rxd4
{[%emt 0:00:01]} Bc5 {[%emt 0:01:14]} 37. Bxc5 {[%emt 0:01:02]} Qxc5 {[%emt 0:
00:00] Endgame KQR-KQR} 38. Qd2 {[%emt 0:00:22]} Kf8 {[%emt 0:01:34]} 39. b4 {
[%emt 0:00:44]} Qc6 {[%emt 0:00:23]} 40. Rd3 {[%emt 0:00:28]} Qc4 {[%emt 0:01:
08]} 41. Rd4 {[%emt 0:11:58]} Qf1 {[%emt 0:02:10]} (41... Qc6 $1 $11 {was
preferrable.}) 42. Qc3 {[%emt 0:08:40]} (42. Qe3 $14) 42... Qf2 {[%emt 0:00:00]
The position is equal.} 43. Qc5+ {[%emt 0:00:13]} Kg7 {[%emt 0:01:43]} 44. Qc3
{[%emt 0:00:39][%cal Ye5e6] Strongly threatening e6!} Kf8 {[%emt 0:00:00]} 45.
Qc8+ {[%emt 0:08:51]} Kg7 {[%emt 0:00:49]} 46. Qc3 {[%emt 0:00:05] Weighted
Error Value: White=0.17 (very precise) /Black=0.19 (very precise)} 1/2-1/2

[Event "44th Chess Olympiad Open 2022"]
[Site "Chennai"]
[Date "2022.08.06"]
[Round "8.21"]
[White "Avila Pavas, Santiago"]
[Black "Nabaty, Tamir"]
[Result "1/2-1/2"]
[WhiteElo "2453"]
[BlackElo "2631"]
[Annotator "TA"]
[PlyCount "132"]
[EventDate "2022.??.??"]
[TimeControl "60"]

{[%evp 9,132,10,11,18,15,-8,0,-30,-28,-35,-35,-44,-12,-20,-10,-14,-29,-18,-10,
-58,-48,-48,-37,-47,-27,-67,-6,-4,-13,-14,-14,-14,-3,-3,-5,-38,-25,-23,-25,-25,
-25,-25,-22,-27,-33,-33,-33,-33,-33,-34,-34,-34,-34,-34,-34,-34,-34,-41,-33,
-41,-41,-41,-41,-41,-33,-34,-36,-37,-21,-29,-29,-42,0,-8,-8,-8,0,0,0,0,0,-6,0,
0,0,0,0,0,0,-2,0,0,0,-86,-86,-86,-86,-86,-86,-86,-86,-86,-86,-86,-86,-86,0,-32,
-32,-86,-86,-86,-86,-86,-86,-86,-86,-87,-86,-86,-86,-86,0,-86,-86]} 1. e4 {
[%emt 0:00:03]} c6 {[%emt 0:02:24]} 2. d4 {[%emt 0:00:40]} d5 {[%emt 0:00:08]}
3. e5 {[%emt 0:00:10]} c5 {[%emt 0:00:18]} 4. dxc5 {[%emt 0:00:40]} e6 {
[%emt 0:00:10]} 5. a3 {[%emt 0:01:08]} Bxc5 {[%emt 0:00:09]} 6. Nf3 {[%emt 0:
00:00] B12: Caro-Kann: Advance Variation.} Ne7 {[%emt 0:00:16]} 7. c4 {[%emt 0:
00:00] [#]} O-O $146 {[%emt 0:01:19]} ({Predecessor:} 7... a5 8. Be2 Nbc6 9.
cxd5 Nxd5 10. Qc2 Qb6 11. O-O Nd4 12. Nxd4 Bxd4 13. Bf3 Bxe5 14. Bxd5 exd5 {
1-0 (27) Moberg,J (1516)-Ronbeck,B Follo 2014}) 8. Nc3 {[%emt 0:01:35][%cal
Yb1c3,Yc3a4,Ya4c5,Yc5b7] The position is equal.} dxc4 {[%emt 0:06:01]} 9. Qxd8
{[%emt 0:13:02]} Rxd8 {[%emt 0:00:03]} 10. Na4 {[%emt 0:02:56]} Bd4 {[%emt 0:
13:53] ...Nbc6 is the strong threat.} 11. Bg5 {[%emt 0:02:41]} Nbc6 {[%emt 0:
03:02]} 12. O-O-O {[%emt 0:04:33]} Kf8 {[%emt 0:05:06]} 13. Bxc4 {[%emt 0:01:
20]} Bd7 {[%emt 0:05:28]} 14. Ba2 {[%emt 0:33:31]} (14. Nxd4 $11 Nxd4 15. Nb6 (
15. Rxd4 Bxa4 16. Rxd8+ Rxd8 $11) 15... axb6 16. Rxd4) 14... Bxe5 {[%emt 0:21:
06][%cal Yc6d4] Hoping for ...Nd4!} 15. Nc5 {[%emt 0:04:09][%csl Yb7,Yd7]} Be8
{[%emt 0:01:49]} 16. Nxe5 {[%emt 0:04:06]} Nxe5 {[%emt 0:01:49]} 17. Nxb7 {
[%emt 0:00:17]} Nd3+ {[%emt 0:04:59]} (17... Rxd1+ $1 $15 18. Rxd1 Bc6) 18. Kb1
$132 {[%emt 0:00:26] White is fighting back} Rd7 {[%emt 0:00:47] White must
now prevent ...f6.} 19. Be3 {[%emt 0:13:57]} Rc8 {[%emt 0:06:19]} 20. b4 {
[%emt 0:00:00]} Rxb7 {[%emt 0:11:50]} 21. Rxd3 {[%emt 0:00:00]} a5 {[%emt 0:00:
05]} 22. Rc1 {[%emt 0:00:00] [#] And now Rxc8 would win.} (22. Rb3 $5 {[%cal
Rb4a5]}) 22... Rxc1+ {[%emt 0:01:00]} (22... axb4 {seems wilder.} 23. Rb3 Rcb8
24. Bf4 Ra8) 23. Kxc1 {[%emt 0:00:00]} axb4 {[%emt 0:00:08]} 24. axb4 {[%emt 0:
00:00]} Rxb4 {[%emt 0:00:50]} 25. Rd8 {[%emt 0:00:00]} Rb7 {[%emt 0:01:12]} 26.
Kd1 {[%emt 0:01:23]} Rd7+ {[%emt 0:00:00]} 27. Rxd7 {[%emt 0:00:07]} Bxd7 $15 {
[%emt 0:00:03] Endgame KBB-KBN} 28. Bc5 {[%emt 0:00:50]} g5 {[%emt 0:01:27]}
29. f3 {[%emt 0:00:47]} f6 {[%emt 0:00:59]} 30. Ke2 {[%emt 0:00:08]} Kf7 {
[%emt 0:00:18]} 31. Kf2 {[%emt 0:00:38]} Bc6 {[%emt 0:01:34]} 32. Bc4 {[%emt 0:
00:21]} Ng6 {[%emt 0:00:00]} 33. Bd6 {[%emt 0:01:15]} h5 {[%emt 0:01:13]} 34.
Bd3 {[%emt 0:00:44]} Nf4 {[%emt 0:01:50]} 35. Bf1 {[%emt 0:00:12]} e5 {[%emt 0:
01:26]} 36. g3 {[%emt 0:00:00]} Ke6 {[%emt 0:00:10]} 37. Ba3 {[%emt 0:01:27]}
Ng6 {[%emt 0:00:20]} 38. Bd3 {[%emt 0:00:33]} Nh8 {[%emt 0:02:02]} 39. Bc4+ {
[%emt 0:00:30]} Bd5 {[%emt 0:00:39]} 40. Ba6 {[%emt 0:00:08]} f5 {[%emt 0:00:
45]} 41. Bc8+ {[%emt 0:00:00] This bishop pair is nice.} Kf6 {[%emt 0:30:06]}
42. f4 {[%emt 0:00:00]} gxf4 {[%emt 0:00:00]} 43. gxf4 {[%emt 0:00:00]} Ng6 {
[%emt 0:00:00]} 44. fxe5+ {[%emt 0:00:00]} Kxe5 {[%emt 0:00:00]} 45. Bd7 {
[%emt 0:00:00]} Nf4 {[%emt 0:00:00]} 46. Ke3 {[%emt 0:00:00]} Ng2+ {[%emt 0:00:
00]} 47. Kf2 {[%emt 0:00:00]} Nf4 {[%emt 0:00:00]} 48. Ke3 {[%emt 0:00:00]}
Ng2+ {[%emt 0:00:00]} 49. Kf2 {[%emt 0:00:00]} Be4 {[%emt 0:00:00]} 50. Bc1 {
[%emt 0:00:00]} Nf4 {[%emt 0:00:00] [#] aiming for ...Nd3+.} 51. Bxf4+ {
[%emt 0:00:00]} (51. Bb2+ $11 Kd6 52. Bb5) 51... Kxf4 $11 {[%emt 0:00:02] KB-KB
} 52. Be6 {[%emt 0:00:00]} Kg4 {[%emt 0:03:31]} 53. Bd7 {[%emt 0:00:00]} Kh3 {
[%emt 0:00:17]} 54. Kg1 {[%emt 0:00:00]} Kh4 {[%emt 0:00:21]} 55. Kf2 {[%emt 0:
00:00]} Kg4 {[%emt 0:00:09]} 56. Be6 {[%emt 0:00:00]} Kg5 {[%emt 0:01:43]} 57.
Kg3 {[%emt 0:00:00]} Kf6 {[%emt 0:00:41]} ({Black should try} 57... f4+ $17 58.
Kf2 Bc6) 58. Bd7 {[%emt 0:00:00]} Ke5 {[%emt 0:00:10]} 59. Be8 {[%emt 0:00:00]}
({Better is} 59. h4 $15) 59... f4+ $17 {[%emt 0:01:00]} 60. Kf2 {[%emt 0:00:00]
} h4 {[%emt 0:00:00]} 61. Bd7 {[%emt 0:00:00]} Kf6 {[%emt 0:01:02]} 62. Bc8 {
[%emt 0:00:00]} Kg5 {[%emt 0:00:34]} 63. Bd7 {[%emt 0:00:00]} Bf5 {[%emt 0:00:
05]} 64. Bc6 {[%emt 0:00:00]} Kg4 {[%emt 0:00:11]} 65. Bf3+ {[%emt 0:00:00]}
Kg5 {[%emt 0:00:00]} 66. Bc6 $1 {[%emt 0:00:00]} Bg4 {[%emt 0:00:08] Weighted
Error Value: White=0.08 (flawless) /Black=0.07 (flawless)} 1/2-1/2